[Event "Czech Open-Rapid 2022"]
[Site "Pardubice"]
[Date "2022.07.21"]
[Round "4.23"]
[White "Brozka, Karel"]
[Black "Sarkar, Justin"]
[Result "1/2-1/2"]
[ECO "D91"]
[WhiteElo "2188"]
[BlackElo "2346"]
[Annotator "TA"]
[PlyCount "157"]
[EventDate "2022.07.20"]
[EventType "swiss"]
[EventCountry "CZE"]
[SourceTitle "playchess.com"]
[Source "ChessBase"]
[SourceQuality "1"]
[TimeControl "1200+10"]

{[%evp 24,156,0,-11,-4,-9,4,-8,0,-16,0,0,0,0,0,-61,15,15,21,14,22,19,16,26,23,22,20,0,31,24,43,6,6,5,4,-2,33,8,21,20,22,22,40,28,72,27,43,29,30,16,27,14,17,16,20,9,9,0,29,6,10,0,0,2,14,13,12,9,27,27,40,20,22,12,8,8,19,29,37,8,49,45,41,56,44,38,47,37,44,0,8,8,8,8,8,8,8,0,0,0,0,0,0,0,0,0,0,0,0,0,0,0,0,0,8,9,9,0,8,-9,-9,-9,-9,-9,8,8,8,8,8,8,8,8,8,8,8]} 1. d4 {[%emt 0:00:05]} Nf6 {[%emt 0:00:16]} 2. c4 {[%emt 0:00:01]} g6 {[%emt 0:00:30]} 3. Nc3 {[%emt 0:00:06]} d5 {[%emt 0:00:08]} 4. Nf3 {[%emt 0:00:15]} Bg7 {[%emt 0:00:06]} 5. Bg5 {[%emt 0:00:02]} Ne4 {[%emt 0:00:56]} 6. cxd5 {[%emt 0:00:03]} Nxg5 {[%emt 0:00:03]} 7. Nxg5 {[%emt 0:00:02]} e6 {[%emt 0:00:08]} 8. Qd2 {[%emt 0:00:01]} exd5 {[%emt 0:00:04]} 9. Qe3+ {[%emt 0:00:01]} Kf8 {[%emt 0:00:04]} 10. Qf4 {[%emt 0:00:01]} Bf6 {[%emt 0:00:20]} 11. h4 {[%emt 0:00:02]} h6 {[%emt 0:00:47]} 12. Nf3 {[%emt 0:00:01] 12.Nxd5 is not played anymore.} Kg7 {[%emt 0:00:18]} 13. e3 {[%emt 0:00:02]} Be6 {[%emt 0:01:02] D91: Grünfeld: 4 Nf3 Bg7 5 Bg5.} 14. Bd3 {[%emt 0:00:55]} c6 {[%emt 0:03:41] was the old line (14...Nd7).} 15. Qg3 {[%emt 0:00:18]} Nd7 {[%emt 0:00:37]} 16. Ne2 {[%emt 0:00:11]} (16. h5 $5 {[%cal Rh5g6]}) 16... Qa5+ {[%emt 0:03:53]} 17. Kf1 {[%emt 0:00:18]} h5 {[%emt 0:01:48]} 18. Nf4 {[%emt 0:00:41][%cal Rd3g6] [#] Black must now prevent Bxg6!} Nf8 {[%emt 0:00:20] [#]} 19. Ng5 $146 {[%emt 0:02:02]} ({White should play} 19. Ne5 $11 Bxe5 20. Nxe6+ (20. dxe5 Re8 $11) 20... Nxe6 21. Qxe5+ Kh6 22. g4) ({Predecessor:} 19. Ne5 Rh6 20. Nxe6+ Nxe6 21. Ke2 Re8 22. f4 c5 23. b4 cxb4 24. f5 Nf8 25. fxg6 Nxg6 {½-½ (36) Legky,N (2330)-Bagirov,V (2485) Lvov 1984}) 19... Bxg5 {[%emt 0:01:05]} ({Better is} 19... Bg4 $15) 20. Qxg5 $11 {[%emt 0:00:27]} ({But not} 20. hxg5 Re8 $15) ({Don't play} 20. Nxe6+ Nxe6 21. hxg5 Rae8 22. Qe5+ Kg8 $17) 20... Re8 {[%emt 0:00:20] Threatens to win with ...Bg4.} 21. Qe5+ {[%emt 0:03:43]} f6 {[%emt 0:00:25]} 22. Qd6 {[%emt 0:00:29]} Bf7 {[%emt 0:00:22]} 23. Rh3 {[%emt 0:02:18]} Qd8 {[%emt 0:04:34]} 24. Qb4 {[%emt 0:01:19]} Qb6 {[%emt 0:00:47]} 25. Qd6 {[%emt 0:02:42]} Qd8 {[%emt 0:00:05]} 26. Qa3 {[%emt 0:00:01]} a6 {[%emt 0:00:02]} 27. Qb4 {[%emt 0:00:11]} (27. Rg3 {is interesting.} Qd7 28. Re1 Qe7 29. Qxe7 Rxe7 30. Ke2) 27... Qe7 {[%emt 0:00:03]} 28. Qxe7 Rxe7 29. b4 {[%emt 0:01:25]} Ne6 {[%emt 0:01:10]} (29... g5 $5 {[%cal Rg5f4]} 30. Ne2 Bg6 31. Bxg6 Kxg6 $11) 30. Nxe6+ {[%emt 0:00:23]} Bxe6 {[%emt 0:00:02]} 31. Rh1 {[%emt 0:00:10]} Ra8 {[%emt 0:00:10]} 32. Ke2 {[%emt 0:00:33]} Bf7 {[%emt 0:00:04]} 33. a4 {[%emt 0:00:24]} Kf8 {[%emt 0:00:07]} 34. Kd2 {[%emt 0:00:28]} Ke8 {[%emt 0:00:05]} 35. Rhc1 {[%emt 0:01:13]} Kd7 {[%emt 0:00:08]} 36. Rc5 {[%emt 0:00:11]} Kd6 {[%emt 0:00:08]} 37. Rac1 {[%emt 0:00:09]} Rd7 {[%emt 0:00:41]} 38. g3 {[%emt 0:00:12]} Re7 {[%emt 0:00:05]} 39. Ra5 {[%emt 0:01:37]} Ree8 {[%emt 0:00:24]} 40. Rac5 {[%emt 0:01:18]} Re7 {[%emt 0:00:05]} 41. R1c2 {[%emt 0:01:09]} Rc7 {[%emt 0:00:47]} 42. b5 {[%emt 0:00:31]} axb5 {[%emt 0:00:02]} 43. axb5 {[%emt 0:00:01]} Ra3 {[%emt 0:00:12]} 44. bxc6 {[%emt 0:00:22]} bxc6 {[%emt 0:00:04]} 45. Rb2 {[%emt 0:00:33]} Be8 {[%emt 0:00:24]} 46. Rb8 {[%emt 0:00:08]} Ra2+ {[%emt 0:00:07]} 47. Ke1 {[%emt 0:00:09]} Kd7 {[%emt 0:00:02]} 48. Rb6 {[%emt 0:00:41]} Kd6 {[%emt 0:00:19]} 49. Kf1 {[%emt 0:00:09]} Raa7 {[%emt 0:00:12]} (49... Rca7 {feels hotter.} 50. Rc3 g5 51. Bf5 Rd2) 50. Rb8 {[%emt 0:00:08]} Kd7 {[%emt 0:00:06]} 51. Kg2 {[%emt 0:00:08][%cal Ob8e8]} Rab7 {[%emt 0:00:13] [#]} (51... Rc8 $5 {[%cal Rc8b8]} 52. Rb3 Kc7 $14) 52. Rxe8 {[%emt 0:00:09]} Kxe8 {[%emt 0:00:02]} 53. Bxg6+ $14 {[%emt 0:00:01][%mdl 4096] Endgame KRR-KRB} Ke7 {[%emt 0:00:02]} 54. Bxh5 {[%emt 0:00:01]} Rb5 {[%emt 0:00:06]} 55. Rc2 {[%emt 0:00:09]} c5 {[%emt 0:00:06]} 56. Rxc5 {[%emt 0:00:05]} Rcxc5 {[%emt 0:00:04] The position is equal.} 57. dxc5 {[%emt 0:00:01]} Rxc5 {[%emt 0:00:01] KR-KB} 58. Bg6 {[%emt 0:00:06]} d4 {[%emt 0:00:21]} 59. exd4 {[%emt 0:00:11]} Rd5 {[%emt 0:00:01]} 60. h5 {[%emt 0:00:09]} Kf8 {[%emt 0:00:03]} 61. h6 {[%emt 0:00:27]} Rxd4 {[%emt 0:00:04]} 62. Bf5 {[%emt 0:00:07]} Rb4 {[%emt 0:00:16]} 63. Kh3 {[%emt 0:00:19]} Ra4 {[%emt 0:00:07]} 64. g4 {[%emt 0:00:16]} Ra3+ {[%emt 0:00:28]} 65. Kg2 {[%emt 0:00:14]} Rc3 {[%emt 0:00:10]} 66. f3 {[%emt 0:00:11][%cal Bf2f3,Bf3f4,Bf4f5][%mdl 32]} Rc1 {[%emt 0:00:06]} 67. Be4 {[%emt 0:00:05]} Ra1 {[%emt 0:00:05]} 68. Bf5 {[%emt 0:00:23]} Rc1 {[%emt 0:00:06]} 69. Bg6 {[%emt 0:00:08]} Ra1 {[%emt 0:00:05]} 70. f4 {[%emt 0:00:07]} Ra3 {[%emt 0:00:07]} 71. g5 {[%emt 0:00:15]} fxg5 {[%emt 0:00:04]} 72. f5 {[%emt 0:00:15]} Kg8 {[%emt 0:01:11]} 73. f6 {[%emt 0:00:08] Intending f7+ and mate.} Kh8 {[%emt 0:00:08]} 74. f7 {[%emt 0:00:11][%cal Rf7f8]} Ra8 {[%emt 0:00:02]} 75. Kg3 {[%emt 0:00:03]} Rf8 {[%emt 0:00:06]} 76. Kg4 {[%emt 0:00:06]} Rxf7 {[%emt 0:00:03]} 77. Bxf7 {[%emt 0:00:04]} Kh7 {[%emt 0:00:01]} 78. Kxg5 {[%emt 0:00:03]} Kh8 {[%emt 0:00:00]} 79. Kg6 {[%emt 0:00:04] Weighted Error Value: White=0.11 (very precise) /Black=0.09 (flawless)} 1/2-1/2

[Event "Czech Open-Rapid 2022"]
[Site "Pardubice"]
[Date "2022.07.21"]
[Round "4.24"]
[White "Slavik, Jan"]
[Black "Gressmann, Moritz"]
[Result "0-1"]
[ECO "B00"]
[WhiteElo "1913"]
[BlackElo "2114"]
[Annotator "RC"]
[PlyCount "130"]
[EventDate "2022.07.20"]
[EventType "swiss"]
[EventCountry "CZE"]
[SourceTitle "playchess.com"]
[Source "ChessBase"]
[SourceQuality "1"]
[TimeControl "1200+10"]

1. e4 {[%emt 0:00:06]} b6 {[%emt 0:00:00]} 2. d4 {[%emt 0:00:16]} Bb7 {[%emt 0:00:01]} 3. Nc3 {[%emt 0:00:22]} e6 {[%emt 0:00:01]} 4. Bd3 {[%emt 0:01:53]} Nf6 {[%emt 0:00:06]} 5. Nge2 {[%emt 0:00:37]} Bb4 {[%emt 0:00:03]} 6. Bd2 {[%emt 0:00:15]} c5 {[%emt 0:00:14]} 7. dxc5 {[%emt 0:00:29]} Bxc5 {[%emt 0:00:07]} 8. O-O {[%emt 0:00:13]} d5 {[%emt 0:01:08]} 9. Bb5+ {[%emt 0:10:28]} Nbd7 {[%emt 0:00:31]} 10. e5 {[%emt 0:01:45]} Ng4 {[%emt 0:00:25]} 11. Bf4 {[%emt 0:00:03]} g5 {[%emt 0:02:19]} 12. Bg3 {[%emt 0:00:13]} h5 {[%emt 0:00:19]} 13. Nd4 {[%emt 0:00:28]} a6 {[%emt 0:00:56]} 14. Bxd7+ {[%emt 0:01:14]} Qxd7 {[%emt 0:00:01]} 15. h3 {[%emt 0:00:06]} Nh6 {[%emt 0:00:06]} 16. Nce2 {[%emt 0:01:06]} O-O-O {[%emt 0:03:37]} 17. c3 {[%emt 0:01:04]} Rdg8 {[%emt 0:00:10]} 18. b4 {[%emt 0:00:02]} Be7 {[%emt 0:00:01]} 19. Qd3 {[%emt 0:01:24]} Kb8 {[%emt 0:00:36]} 20. b5 {[%emt 0:00:04]} a5 {[%emt 0:00:01]} 21. Rab1 {[%emt 0:00:11]} h4 {[%emt 0:00:11]} 22. Bh2 {[%emt 0:00:01]} g4 {[%emt 0:00:07]} 23. hxg4 {[%emt 0:00:09]} Rxg4 {[%emt 0:00:01]} 24. f3 {[%emt 0:00:50]} Rg6 {[%emt 0:00:01]} 25. Nf4 {[%emt 0:00:06]} Rgg8 {[%emt 0:00:19]} 26. Rf2 {[%emt 0:00:14]} Bc5 {[%emt 0:00:31]} 27. Kh1 {[%emt 0:00:20]} Nf5 {[%emt 0:00:14]} 28. Rc2 {[%emt 0:00:16]} Ng3+ {[%emt 0:00:19]} 29. Kg1 {[%emt 0:00:01]} h3 {[%emt 0:01:15]} 30. Kf2 {[%emt 0:00:10]} Nf5 {[%emt 0:01:07]} 31. g4 {[%emt 0:00:15]} Ne7 {[%emt 0:00:31]} 32. a4 {[%emt 0:00:15]} Ka8 {[%emt 0:00:44]} 33. Rg1 {[%emt 0:00:02]} Qd8 {[%emt 0:00:15]} 34. Ke3 {[%emt 0:00:37]} Rg5 {[%emt 0:00:46]} 35. Nh5 {[%emt 0:00:03]} Rhxh5 {[%emt 0:01:25]} 36. gxh5 {[%emt 0:00:07]} Rxg1 {[%emt 0:00:01]} 37. Bxg1 {[%emt 0:00:02]} Qg8 {[%emt 0:00:01]} 38. Bh2 {[%emt 0:00:12]} Nf5+ {[%emt 0:00:17]} 39. Kf4 {[%emt 0:00:13]} Nh4 {[%emt 0:00:44]} 40. Bg3 {[%emt 0:00:17]} Ng2+ {[%emt 0:00:25]} 41. Rxg2 {[%emt 0:00:10]} hxg2 {[%emt 0:00:01]} 42. Qd1 {[%emt 0:00:04]} Qh7 {[%emt 0:01:04]} 43. Qg1 {[%emt 0:00:02]} Qxh5 {[%emt 0:00:59]} 44. Qxg2 {[%emt 0:00:02]} f6 {[%emt 0:01:07]} 45. exf6 {[%emt 0:00:30]} e5+ {[%emt 0:00:01]} 46. Ke3 {[%emt 0:00:01]} exd4+ {[%emt 0:00:02]} 47. cxd4 {[%emt 0:00:01]} Bb4 {[%emt 0:00:12]} 48. Bf4 {[%emt 0:00:13]} Qe8+ {[%emt 0:00:17]} 49. Be5 {[%emt 0:00:01]} Bf8 {[%emt 0:00:58]} 50. Qg5 {[%emt 0:00:03]} Qf7 {[%emt 0:00:22]} 51. f4 {[%emt 0:00:33]} Bc8 {[%emt 0:00:29]} 52. Qg2 {[%emt 0:00:19]} Be6 {[%emt 0:00:33]} 53. Qc2 {[%emt 0:00:01]} Qd7 {[%emt 0:00:26]} 54. Bc7 {[%emt 0:00:29]} Ka7 {[%emt 0:00:10]} 55. Be5 {[%emt 0:00:01]} Bf5 {[%emt 0:00:36]} 56. Qg2 {[%emt 0:00:11]} Qf7 {[%emt 0:00:30]} 57. Qg5 {[%emt 0:00:07]} Qh7 {[%emt 0:00:28]} 58. Qg2 {[%emt 0:00:12]} Bc2 {[%emt 0:00:19]} 59. Qxd5 {[%emt 0:00:14]} Qh3+ {[%emt 0:00:34]} 60. Kf2 {[%emt 0:00:12]} Qh2+ {[%emt 0:00:02]} 61. Qg2 {[%emt 0:00:10]} Qxg2+ {[%emt 0:00:04]} 62. Kxg2 {[%emt 0:00:00]} Bxa4 {[%emt 0:00:01]} 63. d5 {[%emt 0:00:07]} Bxb5 {[%emt 0:00:02]} 64. d6 {[%emt 0:00:00]} Kb7 {[%emt 0:00:07]} 65. f5 {[%emt 0:00:18]} Bd7 {[%emt 0:00:14]} 0-1

[Event "Czech Open-Rapid 2022"]
[Site "Pardubice"]
[Date "2022.07.21"]
[Round "4.25"]
[White "Polak, Benedikt"]
[Black "Vlasak, Jiri"]
[Result "1-0"]
[ECO "C00"]
[WhiteElo "2120"]
[BlackElo "1817"]
[Annotator "RC"]
[PlyCount "49"]
[EventDate "2022.07.20"]
[EventType "swiss"]
[EventCountry "CZE"]
[SourceTitle "playchess.com"]
[Source "ChessBase"]
[SourceQuality "1"]
[TimeControl "1200+10"]

1. e4 {[%emt 0:00:20]} e6 {[%emt 0:00:07]} 2. Nf3 {[%emt 0:00:17]} d5 {[%emt 0:00:04]} 3. e5 {[%emt 0:00:04]} c5 {[%emt 0:00:17]} 4. b4 {[%emt 0:00:06]} cxb4 {[%emt 0:00:25]} 5. a3 {[%emt 0:00:03]} Nc6 {[%emt 0:00:19]} 6. d4 {[%emt 0:00:17]} Qc7 {[%emt 0:00:35]} 7. axb4 {[%emt 0:00:27]} Bxb4+ {[%emt 0:00:26]} 8. c3 {[%emt 0:00:11]} Be7 {[%emt 0:00:23]} 9. Bd3 {[%emt 0:00:29]} f6 {[%emt 0:01:07]} 10. Bf4 {[%emt 0:01:14]} f5 {[%emt 0:01:17]} 11. h4 {[%emt 0:01:32]} h5 {[%emt 0:00:36]} 12. O-O {[%emt 0:01:46]} Nh6 {[%emt 0:01:09]} 13. Na3 {[%emt 0:01:08]} Bxa3 {[%emt 0:00:57]} 14. Rxa3 {[%emt 0:00:01]} g6 {[%emt 0:00:35]} 15. Bxh6 {[%emt 0:02:29]} Rxh6 {[%emt 0:00:10]} 16. Qd2 {[%emt 0:00:08]} Rh8 {[%emt 0:00:21]} 17. c4 {[%emt 0:01:28]} Ne7 {[%emt 0:01:16]} 18. Rc1 {[%emt 0:01:08]} Qd8 {[%emt 0:00:12]} 19. Qg5 {[%emt 0:01:49]} Rg8 {[%emt 0:01:55]} 20. Qh6 {[%emt 0:00:56]} Bd7 {[%emt 0:00:36]} 21. cxd5 {[%emt 0:01:03]} exd5 {[%emt 0:01:08]} 22. Qh7 {[%emt 0:03:05]} a5 {[%emt 0:00:50]} 23. e6 {[%emt 0:01:10]} Bxe6 24. Bb5+ Bd7 25. Re3 1-0

[Event "Czech Open-Rapid 2022"]
[Site "Pardubice"]
[Date "2022.07.21"]
[Round "4.26"]
[White "Chubar, Vladimir"]
[Black "Ptacek, Lubos"]
[Result "1/2-1/2"]
[ECO "D00"]
[WhiteElo "1809"]
[BlackElo "2049"]
[Annotator "NA RC"]
[PlyCount "86"]
[EventDate "2022.07.20"]
[EventType "swiss"]
[EventCountry "CZE"]
[SourceTitle "playchess.com"]
[Source "ChessBase"]
[SourceQuality "1"]
[TimeControl "1200+10"]

1. d4 {[%emt 0:00:02]} d5 {[%emt 0:00:01]} 2. Bf4 {[%emt 0:00:20]} Nf6 {[%emt 0:00:10]} 3. Nc3 {[%emt 0:00:13]} Bf5 {[%emt 0:00:53]} 4. e3 {[%emt 0:00:11]} e6 {[%emt 0:00:37]} 5. Bd3 {[%emt 0:00:31]} Bxd3 {[%emt 0:00:05]} 6. Qxd3 {[%emt 0:00:07]} Bd6 {[%emt 0:00:11]} 7. Bg5 {[%emt 0:01:53]} O-O {[%emt 0:00:20]} 8. Nf3 {[%emt 0:00:10]} Nbd7 {[%emt 0:00:06]} 9. e4 {[%emt 0:01:10]} dxe4 {[%emt 0:00:11]} 10. Nxe4 {[%emt 0:00:08]} Be7 {[%emt 0:00:03]} 11. Nxf6+ {[%emt 0:01:03]} Nxf6 {[%emt 0:00:25]} 12. O-O {[%emt 0:00:46]} c6 {[%emt 0:00:28]} 13. c4 {[%emt 0:02:26]} h6 {[%emt 0:00:12]} 14. Bh4 {[%emt 0:00:30]} Qa5 {[%emt 0:01:12]} 15. a3 {[%emt 0:00:51]} Rfd8 {[%emt 0:00:38]} 16. Qb3 {[%emt 0:01:27]} Qc7 {[%emt 0:01:05]} 17. Rad1 {[%emt 0:00:29]} b6 {[%emt 0:00:39]} 18. Rd3 {[%emt 0:01:15]} Rac8 {[%emt 0:01:38]} 19. Rfd1 {[%emt 0:00:44]} Ne4 {[%emt 0:00:17]} 20. Bxe7 {[%emt 0:01:07]} Qxe7 {[%emt 0:00:03]} 21. Re3 {[%emt 0:00:41]} Ng5 {[%emt 0:04:20]} 22. Nxg5 {[%emt 0:00:25]} Qxg5 {[%emt 0:00:02]} 23. h3 {[%emt 0:00:47]} Rd7 {[%emt 0:00:08]} 24. Red3 {[%emt 0:00:59]} Rcd8 {[%emt 0:00:09]} 25. Qa4 {[%emt 0:00:10]} b5 {[%emt 0:00:52]} 26. Qc2 {[%emt 0:01:52]} Qf4 {[%emt 0:00:50]} 27. Qc3 {[%emt 0:01:25]} Qe4 {[%emt 0:00:55]} 28. Re1 {[%emt 0:00:27]} Qf4 {[%emt 0:00:16]} 29. Red1 {[%emt 0:00:04]} a6 {[%emt 0:00:19]} 30. b3 {[%emt 0:00:18]} Qf5 {[%emt 0:00:29]} 31. Rf3 {[%emt 0:01:02]} Qe4 {[%emt 0:00:13]} 32. Re3 {[%emt 0:00:03]} Qh4 {[%emt 0:00:24]} 33. Red3 {[%emt 0:00:14]} Qe7 {[%emt 0:00:21]} 34. Qa5 {[%emt 0:00:05]} Ra8 {[%emt 0:00:53]} 35. a4 {[%emt 0:00:21]} Qd8 {[%emt 0:00:27]} 36. Qb4 {[%emt 0:00:19]} bxa4 {[%emt 0:01:10]} 37. Qxa4 {[%emt 0:00:04]} Qb6 {[%emt 0:00:08]} 38. d5 {[%emt 0:00:07]} exd5 {[%emt 0:00:23]} 39. cxd5 {[%emt 0:00:01]} Rad8 {[%emt 0:00:23]} 40. d6 {[%emt 0:00:05]} Qb5 {[%emt 0:00:29]} 41. Qe4 {[%emt 0:00:07]} Qc5 {[%emt 0:00:18]} 42. Qf4 {[%emt 0:00:11]} a5 {[%emt 0:00:20]} 43. Qg3 {[%emt 0:00:02]} Kf8 {[%emt 0:00:43]} 1/2-1/2

[Event "Czech Open-Rapid 2022"]
[Site "Pardubice"]
[Date "2022.07.21"]
[Round "4.27"]
[White "Nemec, Bohumil"]
[Black "Contos, Vaclav sr"]
[Result "0-1"]
[ECO "A43"]
[WhiteElo "1762"]
[BlackElo "2074"]
[Annotator "NA RC"]
[PlyCount "80"]
[EventDate "2022.07.20"]
[EventType "swiss"]
[EventCountry "CZE"]
[SourceTitle "playchess.com"]
[Source "ChessBase"]
[SourceQuality "1"]
[TimeControl "1200+10"]

1. d4 {[%emt 0:00:04]} c5 {[%emt 0:00:01]} 2. c3 {[%emt 0:00:05]} e6 {[%emt 0:00:04]} 3. Nf3 {[%emt 0:00:05]} Nf6 {[%emt 0:00:01]} 4. Bf4 {[%emt 0:00:02]} d5 {[%emt 0:00:04]} 5. Bxb8 {[%emt 0:00:21]} Rxb8 {[%emt 0:00:02]} 6. e3 {[%emt 0:00:32]} Bd7 {[%emt 0:00:10]} 7. Nbd2 Bd6 8. dxc5 {[%emt 0:00:30]} Bxc5 {[%emt 0:00:11]} 9. Ne5 {[%emt 0:00:14]} O-O {[%emt 0:00:07]} 10. Nxd7 {[%emt 0:00:16]} Qxd7 {[%emt 0:00:02]} 11. Nf3 {[%emt 0:00:44]} Bd6 {[%emt 0:00:11]} 12. h3 {[%emt 0:00:10]} Ne4 {[%emt 0:00:46]} 13. Bd3 {[%emt 0:00:25]} f5 {[%emt 0:00:12]} 14. O-O {[%emt 0:00:21]} b5 {[%emt 0:00:30]} 15. a3 {[%emt 0:00:57]} Rf6 {[%emt 0:01:04]} 16. Qc2 {[%emt 0:00:57]} Rbf8 {[%emt 0:00:16]} 17. Rad1 {[%emt 0:00:30]} Rh6 {[%emt 0:00:25]} 18. Bxe4 {[%emt 0:00:30]} fxe4 {[%emt 0:00:03]} 19. Nd4 {[%emt 0:00:29]} Rff6 {[%emt 0:00:55]} 20. Ne2 {[%emt 0:00:58]} Rfg6 {[%emt 0:00:08]} 21. Ng3 {[%emt 0:02:07]} Bxg3 {[%emt 0:00:11]} 22. fxg3 {[%emt 0:00:04]} Rxg3 {[%emt 0:00:05]} 23. Qxe4 {[%emt 0:00:26]} Rhg6 {[%emt 0:02:44]} 24. Qf4 {[%emt 0:01:17]} Rxg2+ {[%emt 0:00:08]} 25. Kh1 {[%emt 0:00:03]} h6 {[%emt 0:00:18]} 26. Qb8+ {[%emt 0:01:41]} Kh7 {[%emt 0:00:02]} 27. Rf8 {[%emt 0:00:11]} R6g3 {[%emt 0:01:11]} 28. Rdf1 {[%emt 0:01:58]} e5 {[%emt 0:00:33]} 29. Rh8+ {[%emt 0:03:37]} Kg6 {[%emt 0:00:02]} 30. Qc8 {[%emt 0:00:24]} Qxc8 {[%emt 0:00:13]} 31. Rxc8 {[%emt 0:00:04]} Rxb2 {[%emt 0:00:07]} 32. Rc6+ {[%emt 0:00:50]} Kh7 {[%emt 0:00:05]} 33. Rc5 {[%emt 0:01:15]} Rxe3 {[%emt 0:00:33]} 34. Rxd5 {[%emt 0:00:12]} Rxc3 {[%emt 0:00:06]} 35. Rxe5 {[%emt 0:00:08]} Rxh3+ {[%emt 0:00:10]} 36. Kg1 {[%emt 0:00:03]} Rxa3 {[%emt 0:00:08]} 37. Re7 {[%emt 0:00:13]} Raa2 {[%emt 0:00:16]} 38. Rff7 {[%emt 0:00:10]} Rb1+ {[%emt 0:00:08]} 39. Rf1 {[%emt 0:00:05]} Rxf1+ {[%emt 0:00:14]} 40. Kxf1 {[%emt 0:00:03]} b4 {[%emt 0:00:03]} 0-1

[Event "Czech Open-Rapid 2022"]
[Site "Pardubice"]
[Date "2022.07.21"]
[Round "4.28"]
[White "Dosedel, Jiri"]
[Black "Haack, Stefan"]
[Result "0-1"]
[ECO "A00"]
[WhiteElo "2008"]
[BlackElo "1757"]
[Annotator "TA"]
[PlyCount "98"]
[EventDate "2022.07.20"]
[EventType "swiss"]
[EventCountry "CZE"]
[SourceTitle "playchess.com"]
[Source "ChessBase"]
[SourceQuality "1"]
[TimeControl "1200+10"]

{[%evp 9,98,-106,-94,-112,-112,-164,-134,-148,-7,0,-10,-19,59,49,62,67,87,82,105,100,100,46,133,128,285,283,276,271,418,408,392,290,285,273,397,387,544,472,1166,767,1181,369,370,357,330,466,590,550,838,702,661,-416,-487,-458,-102,-494,-489,-489,-489,-485,-481,-477,-477,-577,-515,-507,-501,-670,-644,-642,-599,-1027,-1018,-1000,-961,-1145,-1064,-1729,-1833,-1627,-1416,-1750,-1705,-29981,-29982,-29982,-29983,-29983,-29984,-29984,-29984]} 1. g4 {[%emt 0:00:03]} d5 {[%emt 0:00:09]} 2. Bg2 {[%emt 0:00:06]} c6 {[%emt 0:00:04]} 3. h3 {[%emt 0:00:05]} e5 {[%emt 0:00:07]} 4. b3 {[%emt 0:00:04]} Nd7 {[%emt 0:00:36]} 5. Bb2 {[%emt 0:00:12]} Bd6 {[%emt 0:00:33]} 6. e3 {[%emt 0:00:35] A00: Irregular Openings.} Ne7 {[%emt 0:00:59] [#]} 7. Ne2 $146 {[%emt 0:00:51]} (7. d3 $17) ({Predecessor:} 7. d3 Nf8 8. Nd2 Nfg6 9. Ndf3 h5 10. gxh5 Rxh5 11. Ne2 Nh4 12. Nxh4 Rxh4 13. Ng3 {½-½ (98) Van Foreest,J (2714)-Goryachkina,A (2610) Chess.com INT 2022}) 7... O-O {[%emt 0:00:36]} 8. c4 {[%emt 0:01:35] Black is clearly better.} Qb6 {[%emt 0:02:28]} (8... f5 $17 {...fxg4 is the strong threat.} 9. cxd5 cxd5) 9. cxd5 $11 {[%emt 0:00:31]} cxd5 {[%emt 0:00:40]} 10. Nbc3 {[%emt 0:00:02]} e4 {[%emt 0:01:09]} ({Black should try} 10... d4 $11 11. exd4 exd4) 11. d3 $1 $14 {[%emt 0:00:21]} exd3 {[%emt 0:02:09]} 12. Qxd3 {[%emt 0:00:06]} Ne5 {[%emt 0:00:51]} 13. Qd2 {[%emt 0:01:00]} Bb4 {[%emt 0:01:53]} 14. O-O {[%emt 0:00:37][%cal Oc3d5]} Rd8 {[%emt 0:00:44][%cal Oh7h5]} 15. Rad1 {[%emt 0:02:06]} (15. Rfd1 $16) 15... Be6 {[%emt 0:03:22]} ({Black should play} 15... h5 $1 $14) 16. f4 $16 {[%emt 0:02:11][%cal Bf2f4,Bf4f5][%mdl 32]} Bc5 $2 {[%emt 0:01:37]} 17. Nd4 $18 {[%emt 0:00:26]} Bxd4 {[%emt 0:00:34]} 18. exd4 {[%emt 0:00:02]} (18. Qxd4 N5c6 19. Qxb6 (19. Nxd5 Nxd4 20. Nxb6 axb6 $16) 19... axb6 $18) 18... N5c6 {[%emt 0:00:56]} (18... Nxg4 $142 19. Ba3 Ne3) 19. f5 {[%emt 0:00:02]} Bc8 {[%emt 0:00:44]} 20. Kh1 {[%emt 0:05:08]} f6 {[%emt 0:00:52]} 21. Rfe1 {[%emt 0:00:24]} Qc7 {[%emt 0:01:11]} (21... Bd7 $142 22. Ba3 (22. Nxd5 Nxd5 23. Bxd5+ Kh8 $18) 22... Re8) 22. Ba3 {[%emt 0:00:14]} Kf7 {[%emt 0:00:15]} (22... Bxf5 {might work better.} 23. gxf5 Nxf5) 23. Qe3 {[%emt 0:00:11][%cal Oc3d5]} a6 {[%emt 0:00:45]} (23... Qd7 $142 24. Re2 b5 25. Bxe7 Qxe7 26. Qxe7+ Nxe7) 24. Rc1 {[%emt 0:01:20][%cal Oc3d5]} h5 {[%emt 0:00:04] [#]} 25. Ne2 $2 {[%emt 0:01:01]} (25. Nxd5 $1 {[%mdl 512]} Qa5 (25... Qd7 26. Nxe7) 26. Bxe7 Rxd5 27. Bc5) 25... hxg4 {[%emt 0:00:08]} 26. hxg4 {[%emt 0:00:18] Black must now prevent Nf4.} ({Not} 26. Nf4 gxh3 27. Bf3 (27. Bxh3 Nxf5 28. Qf3 Kg8 $15) (27. Nxh3 Bxf5 28. Bxe7 Qxe7 $16) 27... Bxf5 $18) 26... Rh8+ {[%emt 0:00:05]} 27. Kg1 {[%emt 0:00:01]} Qh2+ {[%emt 0:00:02]} 28. Kf1 {[%emt 0:00:22]} Rh4 {[%emt 0:00:32]} 29. Bxe7 {[%emt 0:00:36]} Nxe7 {[%emt 0:00:01]} 30. Rc7 $4 {[%emt 0:00:24][%mdl 8192]} Qxc7 $19 {[%emt 0:00:02]} 31. Nf4 {[%emt 0:00:30]} Qd6 {[%emt 0:00:23]} (31... Qd8 $19 {and Black stays clearly on top.} 32. Qxe7+ Qxe7 33. Rxe7+ Kxe7 34. Ng6+ Kd6 35. Nxh4 Bd7) 32. Qxe7+ $4 {[%emt 0:00:29][%mdl 8192]} Qxe7 {[%emt 0:00:04]} 33. Rxe7+ {[%emt 0:00:11]} Kxe7 {[%emt 0:00:01]} 34. Ng6+ {[%emt 0:00:01]} Kd6 {[%emt 0:00:06]} 35. Nxh4 {[%emt 0:00:01][%mdl 4096] Endgame KRB-KBN} Bd7 {[%emt 0:00:03] aiming for ...Rc8.} 36. Ng6 {[%emt 0:00:06]} Rc8 {[%emt 0:00:05]} 37. Nf4 {[%emt 0:00:12]} Rc1+ {[%emt 0:00:02]} 38. Kf2 {[%emt 0:00:08]} Bc6 {[%emt 0:00:01]} 39. Nh5 {[%emt 0:00:09]} Rc2+ {[%emt 0:00:05]} 40. Kg3 {[%emt 0:00:02]} Rxa2 {[%emt 0:00:05]} 41. Nxg7 {[%emt 0:00:01]} Ra3 {[%emt 0:00:04]} 42. Kf4 {[%emt 0:00:11]} Rxb3 {[%emt 0:00:07] [#] Strongly threatening ...a5.} 43. g5 {[%emt 0:00:02]} fxg5+ {[%emt 0:00:03]} 44. Kg4 {[%emt 0:00:06]} Ke7 {[%emt 0:00:11] And now ...a5 would win.} 45. Ne6 {[%emt 0:00:05]} a5 {[%emt 0:00:11][%cal Ba6a5,Ba5a4,Ba4a3][%mdl 32]} 46. Nxg5 {[%emt 0:00:27]} a4 {[%emt 0:00:03] Black mates.} 47. Kf4 {[%emt 0:00:03]} a3 {[%emt 0:00:07]} 48. Ke5 {[%emt 0:00:02]} Re3+ {[%emt 0:00:11]} 49. Kf4 {[%emt 0:00:01]} Re1 {Quite a comeback for Black.  Weighted Error Value: White=1.11/Black=0.54} 0-1